[Event "*** Titled Tuesday Blitz"]
[Site "Chess.com"]
[Date "2019.11.05"]
[Round "9"]
[White "colegiodemadrid"]
[Black "pedro_gines"]
[Result "0-1"]
[WhiteElo "2414"]
[BlackElo "2541"]
[TimeControl "180+2"]
[EndTime "15:07:42 PST"]
[Termination "pedro_gines won by resignation"]

1. Nf3 {[%clk 0:03:01.9]} 1... d6 {[%clk 0:02:43.5]} 2. d4 {[%clk 0:03:00.7]}
2... f5 {[%clk 0:02:38.4]} 3. g3 {[%clk 0:02:58.7]} 3... Nf6 {[%clk 0:02:29.1]}
4. Bg2 {[%clk 0:03:00.2]} 4... g6 {[%clk 0:02:20.3]} 5. O-O {[%clk 0:03:00.6]}
5... Bg7 {[%clk 0:02:17.7]} 6. c4 {[%clk 0:03:00.6]} 6... O-O {[%clk 0:02:19.6]}
7. Nc3 {[%clk 0:03:01.2]} 7... Nc6 {[%clk 0:02:20.7]} 8. d5 {[%clk 0:03:00.9]}
8... Ne5 {[%clk 0:02:21.8]} 9. Nxe5 {[%clk 0:03:01.7]} 9... dxe5 {[%clk
0:02:20.1]} 10. e4 {[%clk 0:02:59.4]} 10... f4 {[%clk 0:02:20.9]} 11. gxf4
{[%clk 0:02:58.5]} 11... exf4 {[%clk 0:02:20.6]} 12. Bxf4 {[%clk 0:03:00]} 12...
Nxe4 {[%clk 0:02:21.3]} 13. Bg3 {[%clk 0:02:57]} 13... Nxg3 {[%clk 0:02:14.8]}
14. hxg3 {[%clk 0:02:55]} 14... e6 {[%clk 0:02:15]} 15. Qd3 {[%clk 0:02:51.6]}
15... exd5 {[%clk 0:02:15.6]} 16. Bxd5+ {[%clk 0:02:50.4]} 16... Kh8 {[%clk
0:02:11.4]} 17. Rad1 {[%clk 0:02:51.5]} 17... Bf5 {[%clk 0:02:10.8]} 18. Be4
{[%clk 0:02:37.9]} 18... Qxd3 {[%clk 0:02:08.7]} 19. Bxd3 {[%clk 0:02:39.4]}
19... Bxc3 {[%clk 0:01:58.8]} 20. bxc3 {[%clk 0:02:38.5]} 20... Bg4 {[%clk
0:01:49.7]} 21. Rb1 {[%clk 0:02:38.3]} 21... b6 {[%clk 0:01:50.2]} 22. c5 {[%clk
0:02:39.4]} 22... Bf3 {[%clk 0:01:48.9]} 23. Rfe1 {[%clk 0:02:26.6]} 23... Kg7
{[%clk 0:01:48.5]} 24. Be4 {[%clk 0:02:25.1]} 24... Rae8 {[%clk 0:01:41.5]} 25.
Bxf3 {[%clk 0:02:24]} 25... Rxe1+ {[%clk 0:01:43.4]} 26. Rxe1 {[%clk 0:02:24.2]}
26... Rxf3 {[%clk 0:01:45.3]} 27. cxb6 {[%clk 0:02:25.6]} 27... axb6 {[%clk
0:01:45.3]} 28. Re7+ {[%clk 0:02:23.5]} 28... Rf7 {[%clk 0:01:45.3]} 29. Re4
{[%clk 0:02:24.4]} 29... Rf5 {[%clk 0:01:46.1]} 30. Re7+ {[%clk 0:02:20.5]}
30... Rf7 {[%clk 0:01:45.8]} 31. Re4 {[%clk 0:02:21.2]} 31... Kf6 {[%clk
0:01:43.5]} 32. Kg2 {[%clk 0:02:20.4]} 32... c5 {[%clk 0:01:38.7]} 33. a4 {[%clk
0:02:17.9]} 33... Ra7 {[%clk 0:01:38.2]} 34. f4 {[%clk 0:02:14.7]} 34... h5
{[%clk 0:01:35.3]} 35. Kf3 {[%clk 0:02:15.8]} 35... Kf5 {[%clk 0:01:35.4]} 36.
Re5+ {[%clk 0:02:14.7]} 36... Kf6 {[%clk 0:01:36.7]} 37. Re4 {[%clk 0:02:16.3]}
37... Rd7 {[%clk 0:01:37.3]} 38. Rc4 {[%clk 0:02:14.2]} 38... Rd3+ {[%clk
0:01:37]} 39. Kf2 {[%clk 0:02:14.5]} 39... Rd2+ {[%clk 0:01:34.3]} 40. Kf3
{[%clk 0:02:14.3]} 40... Ra2 {[%clk 0:01:34.7]} 41. Ke4 {[%clk 0:02:15.2]} 41...
Rg2 {[%clk 0:01:23.6]} 42. Kf3 {[%clk 0:02:07.2]} 42... Ra2 {[%clk 0:01:23.6]}
43. Ke4 {[%clk 0:02:06.2]} 43... Ra3 {[%clk 0:01:20.4]} 44. Kf3 {[%clk
0:02:06.2]} 44... Kf5 {[%clk 0:01:20.5]} 45. Kf2 {[%clk 0:01:58.8]} 45... Kg4
{[%clk 0:01:20.9]} 46. Re4 {[%clk 0:02:00.4]} 46... Rxc3 {[%clk 0:01:18.6]} 47.
Re6 {[%clk 0:02:01.7]} 47... Rf3+ {[%clk 0:01:16.9]} 48. Ke2 {[%clk 0:02:01.8]}
48... Rxg3 {[%clk 0:01:17.4]} 49. Rxg6+ {[%clk 0:02:02.8]} 49... Kxf4 {[%clk
0:01:18.8]} 50. Rxb6 {[%clk 0:02:03.6]} 50... Ke4 {[%clk 0:01:18.6]} 51. Rh6
{[%clk 0:02:03.7]} 51... Rg2+ {[%clk 0:01:17.1]} 52. Kf1 {[%clk 0:02:03.9]}
52... Rh2 {[%clk 0:01:18.4]} 53. a5 {[%clk 0:02:04.4]} 53... c4 {[%clk
0:01:19.2]} 54. a6 {[%clk 0:02:05.8]} 54... c3 {[%clk 0:01:00.5]} 55. Ke1 {[%clk
0:01:52.2]} 55... Rh1+ {[%clk 0:00:46.8]} 56. Ke2 {[%clk 0:01:32.9]} 56... c2
{[%clk 0:00:46.9]} 57. a7 {[%clk 0:01:33.2]} 57... Rh2+ {[%clk 0:00:47.3]} 0-1

[Event "*** Titled Tuesday Blitz"]
[Site "Chess.com"]
[Date "2019.11.05"]
[Round "9"]
[White "Mikhail_Golubev"]
[Black "pedroholly22"]
[Result "1-0"]
[WhiteElo "2632"]
[BlackElo "2410"]
[TimeControl "180+2"]
[EndTime "15:07:45 PST"]
[Termination "Mikhail_Golubev won by resignation"]

1. e4 {[%clk 0:03:01.9]} 1... c5 {[%clk 0:02:59.3]} 2. Nf3 {[%clk 0:03:02.2]}
2... g6 {[%clk 0:02:57]} 3. Nc3 {[%clk 0:03:01.8]} 3... Bg7 {[%clk 0:02:55.9]}
4. d4 {[%clk 0:03:02.7]} 4... cxd4 {[%clk 0:02:56.9]} 5. Nxd4 {[%clk 0:03:03.8]}
5... Nc6 {[%clk 0:02:58.4]} 6. Be3 {[%clk 0:03:04.7]} 6... Nf6 {[%clk
0:02:56.4]} 7. Nxc6 {[%clk 0:03:05.5]} 7... bxc6 {[%clk 0:02:57.2]} 8. e5 {[%clk
0:03:06.5]} 8... Ng8 {[%clk 0:02:56.1]} 9. Bd4 {[%clk 0:03:07]} 9... f6 {[%clk
0:02:57.3]} 10. f4 {[%clk 0:03:02.3]} 10... Qa5 {[%clk 0:02:56.8]} 11. Qd2
{[%clk 0:03:02.3]} 11... fxe5 {[%clk 0:02:55.2]} 12. fxe5 {[%clk 0:03:03.3]}
12... Bxe5 {[%clk 0:02:55.5]} 13. Qg5 {[%clk 0:03:01.6]} 13... d6 {[%clk
0:02:51.9]} 14. Bxe5 {[%clk 0:03:00.9]} 14... Qxe5+ {[%clk 0:02:51.9]} 15. Qxe5
{[%clk 0:03:00.9]} 15... dxe5 {[%clk 0:02:53.8]} 16. Bc4 {[%clk 0:02:53.1]}
16... Nf6 {[%clk 0:02:52.1]} 17. O-O-O {[%clk 0:02:46.4]} 17... Bf5 {[%clk
0:02:50.8]} 18. h3 {[%clk 0:02:40.5]} 18... h5 {[%clk 0:02:50.5]} 19. g4 {[%clk
0:02:14.2]} 19... Be4 {[%clk 0:02:17.9]} 20. Nxe4 {[%clk 0:01:28.2]} 20... Nxe4
{[%clk 0:02:19.8]} 21. Bd3 {[%clk 0:01:28.2]} 21... Ng3 {[%clk 0:02:14.2]} 22.
Rhg1 {[%clk 0:01:20.9]} 22... e4 {[%clk 0:02:11.3]} 23. Rxg3 {[%clk 0:01:08.8]}
23... exd3 {[%clk 0:02:11.3]} 24. Rdxd3 {[%clk 0:01:09.7]} 24... hxg4 {[%clk
0:02:10.4]} 25. Rxg4 {[%clk 0:01:10]} 25... Rh6 {[%clk 0:02:09.3]} 26. Ra3
{[%clk 0:01:01.8]} 26... Rd8 {[%clk 0:02:07.7]} 27. Rxa7 {[%clk 0:00:43.9]}
27... Rxh3 {[%clk 0:02:07.8]} 28. b3 {[%clk 0:00:44.9]} 28... Rd6 {[%clk
0:02:04.8]} 29. Re4 {[%clk 0:00:42.3]} 29... e6 {[%clk 0:02:03]} 30. Rg7 {[%clk
0:00:30.9]} 30... Rg3 {[%clk 0:02:02.9]} 31. a4 {[%clk 0:00:31]} 31... Kf8
{[%clk 0:01:49.3]} 32. Rc7 {[%clk 0:00:31.4]} 32... g5 {[%clk 0:01:42.7]} 33. a5
{[%clk 0:00:26.7]} 33... Rd5 {[%clk 0:00:57]} 34. a6 {[%clk 0:00:24.7]} 34...
Ra5 {[%clk 0:00:41.9]} 35. a7 {[%clk 0:00:25.3]} 35... Rg1+ {[%clk 0:00:41.8]}
36. Kb2 {[%clk 0:00:25.1]} 36... Rga1 {[%clk 0:00:42.8]} 37. Rb4 {[%clk
0:00:25.2]} 37... R1a2+ {[%clk 0:00:39.8]} 38. Kc3 {[%clk 0:00:19.3]} 38... Rc5+
{[%clk 0:00:37]} 39. Rc4 {[%clk 0:00:18.8]} 39... Rxc4+ {[%clk 0:00:27.5]} 40.
bxc4 {[%clk 0:00:19.9]} 40... g4 {[%clk 0:00:26.2]} 41. Rc8+ {[%clk 0:00:20.5]}
41... Kf7 {[%clk 0:00:26.1]} 42. a8=Q {[%clk 0:00:20.8]} 42... Rxa8 {[%clk
0:00:25.7]} 1-0

[Event "*** Titled Tuesday Blitz"]
[Site "Chess.com"]
[Date "2019.11.05"]
[Round "9"]
[White "GadimbayliA"]
[Black "ChessWarrior7197"]
[Result "0-1"]
[WhiteElo "2933"]
[BlackElo "2967"]
[TimeControl "180+2"]
[EndTime "15:07:46 PST"]
[Termination "ChessWarrior7197 won on time"]

1. e4 {[%clk 0:02:59.3]} 1... c5 {[%clk 0:03:01.1]} 2. Nf3 {[%clk 0:03:00]} 2...
d6 {[%clk 0:03:02.6]} 3. d4 {[%clk 0:03:01.3]} 3... cxd4 {[%clk 0:03:04.5]} 4.
Nxd4 {[%clk 0:03:03.2]} 4... Nf6 {[%clk 0:03:06.1]} 5. Nc3 {[%clk 0:03:04.6]}
5... a6 {[%clk 0:03:07.6]} 6. g3 {[%clk 0:03:06]} 6... e5 {[%clk 0:03:03.9]} 7.
Nf3 {[%clk 0:03:07]} 7... Be7 {[%clk 0:03:02.9]} 8. Bg2 {[%clk 0:03:07.6]} 8...
O-O {[%clk 0:03:02.8]} 9. O-O {[%clk 0:03:08.6]} 9... b5 {[%clk 0:03:03.5]} 10.
a4 {[%clk 0:03:09.5]} 10... b4 {[%clk 0:03:03.3]} 11. Nd5 {[%clk 0:03:10.7]}
11... Nxd5 {[%clk 0:03:04.5]} 12. Qxd5 {[%clk 0:03:12.6]} 12... Ra7 {[%clk
0:03:05]} 13. Be3 {[%clk 0:03:13.7]} 13... Be6 {[%clk 0:03:02.9]} 14. Qd3 {[%clk
0:03:14.7]} 14... Rb7 {[%clk 0:03:01.3]} 15. Nd2 {[%clk 0:03:14.6]} 15... Qc7
{[%clk 0:02:53.5]} 16. f4 {[%clk 0:03:14]} 16... Rc8 {[%clk 0:02:51.6]} 17. Rfc1
{[%clk 0:03:11.2]} 17... exf4 {[%clk 0:02:46.3]} 18. gxf4 {[%clk 0:03:10.4]}
18... Bd7 {[%clk 0:02:10.2]} 19. Kh1 {[%clk 0:02:34.4]} 19... Bf6 {[%clk
0:02:05.2]} 20. e5 {[%clk 0:02:20.3]} 20... dxe5 {[%clk 0:02:04.7]} 21. Ne4
{[%clk 0:02:21.6]} 21... Be7 {[%clk 0:01:56.9]} 22. fxe5 {[%clk 0:02:21.6]}
22... Qxe5 {[%clk 0:01:38.7]} 23. Bd4 {[%clk 0:02:22.2]} 23... Qc7 {[%clk
0:01:29.5]} 24. Rg1 {[%clk 0:02:03.8]} 24... Bc6 {[%clk 0:01:30]} 25. Bf3 {[%clk
0:01:38.5]} 25... g6 {[%clk 0:01:26.2]} 26. Qe3 {[%clk 0:01:39.7]} 26... Nd7
{[%clk 0:01:13.3]} 27. Rg2 {[%clk 0:01:18.1]} 27... Bf8 {[%clk 0:01:10.3]} 28.
Rag1 {[%clk 0:01:16.5]} 28... Re8 {[%clk 0:01:08.9]} 29. Qd3 {[%clk 0:00:19.7]}
29... Bxe4 {[%clk 0:00:42.4]} 30. Bxe4 {[%clk 0:00:19.9]} 30... Nc5 {[%clk
0:00:43.4]} 31. Bxc5 {[%clk 0:00:18]} 31... Bxc5 {[%clk 0:00:45.3]} 32. Rf1
{[%clk 0:00:06.9]} 32... Rb6 {[%clk 0:00:40.7]} 33. Bd5 {[%clk 0:00:08.2]} 33...
Re7 {[%clk 0:00:40]} 34. Qc4 {[%clk 0:00:08]} 34... Kg7 {[%clk 0:00:35.2]} 35.
Qd3 {[%clk 0:00:05.5]} 35... Qe5 {[%clk 0:00:34.4]} 36. b3 {[%clk 0:00:05.7]}
36... Rd6 {[%clk 0:00:34.9]} 37. Rd1 {[%clk 0:00:05.1]} 37... Red7 {[%clk
0:00:35.4]} 0-1

[Event "*** Titled Tuesday Blitz"]
[Site "Chess.com"]
[Date "2019.11.05"]
[Round "9"]
[White "sergeikim"]
[Black "Tsschessulover"]
[Result "1-0"]
[WhiteElo "2547"]
[BlackElo "2416"]
[TimeControl "180+2"]
[EndTime "15:07:49 PST"]
[Termination "sergeikim won by resignation"]

1. d4 {[%clk 0:03:01.9]} 1... e6 {[%clk 0:03:01.2]} 2. c4 {[%clk 0:03:01.9]}
2... b6 {[%clk 0:03:01.8]} 3. Nc3 {[%clk 0:03:02.4]} 3... Bb7 {[%clk 0:03:02]}
4. a3 {[%clk 0:03:02.4]} 4... Nf6 {[%clk 0:03:01.6]} 5. Nf3 {[%clk 0:03:03.1]}
5... Be7 {[%clk 0:03:02.9]} 6. g3 {[%clk 0:03:04.1]} 6... O-O {[%clk 0:03:04.8]}
7. Bg2 {[%clk 0:03:05.1]} 7... d5 {[%clk 0:03:06.3]} 8. cxd5 {[%clk 0:02:59.1]}
8... exd5 {[%clk 0:03:04.4]} 9. Ne5 {[%clk 0:02:55.1]} 9... Nbd7 {[%clk
0:03:03]} 10. O-O {[%clk 0:02:55.8]} 10... Ne4 {[%clk 0:02:58.5]} 11. f4 {[%clk
0:02:43.4]} 11... c5 {[%clk 0:02:48.8]} 12. e3 {[%clk 0:02:42.7]} 12... cxd4
{[%clk 0:02:41.5]} 13. exd4 {[%clk 0:02:41.6]} 13... Rc8 {[%clk 0:02:42.7]} 14.
Bd2 {[%clk 0:02:39.3]} 14... Nxe5 {[%clk 0:02:39.7]} 15. fxe5 {[%clk 0:02:35.6]}
15... Bg5 {[%clk 0:02:40.3]} 16. Nxe4 {[%clk 0:01:47.9]} 16... dxe4 {[%clk
0:02:38.8]} 17. Bxg5 {[%clk 0:01:47.8]} 17... Qxg5 {[%clk 0:02:40.7]} 18. Rf4
{[%clk 0:01:47.5]} 18... f5 {[%clk 0:02:23.8]} 19. d5 {[%clk 0:01:09.5]} 19...
Qe7 {[%clk 0:02:16.6]} 20. Qd4 {[%clk 0:01:06.4]} 20... Rfd8 {[%clk 0:02:11.3]}
21. d6 {[%clk 0:01:02.9]} 21... Qe6 {[%clk 0:02:11.9]} 22. Bf1 {[%clk
0:00:49.1]} 22... Rc5 {[%clk 0:02:05.4]} 23. Bh3 {[%clk 0:00:29.5]} 23... g6
{[%clk 0:01:57.5]} 24. g4 {[%clk 0:00:20.9]} 24... Rc4 {[%clk 0:01:58]} 25. Qe3
{[%clk 0:00:18.6]} 25... Qxe5 {[%clk 0:01:27.3]} 26. gxf5 {[%clk 0:00:16.3]}
26... Bc8 {[%clk 0:01:24]} 27. Raf1 {[%clk 0:00:11.2]} 27... g5 {[%clk
0:01:00.7]} 28. R4f2 {[%clk 0:00:08.5]} 28... h6 {[%clk 0:01:01.1]} 29. Bg2
{[%clk 0:00:05.6]} 29... Rxd6 {[%clk 0:00:57.7]} 30. f6 {[%clk 0:00:06.2]} 30...
Kf7 {[%clk 0:00:53.7]} 31. Qe2 {[%clk 0:00:05.5]} 31... Rc7 {[%clk 0:00:22.1]}
32. Qh5+ {[%clk 0:00:06.2]} 32... Ke6 {[%clk 0:00:21.1]} 33. f7 {[%clk
0:00:05.9]} 33... e3 {[%clk 0:00:17.6]} 34. f8=Q {[%clk 0:00:06.3]} 34... exf2+
{[%clk 0:00:16.2]} 35. Qxf2 {[%clk 0:00:07.8]} 35... Re7 {[%clk 0:00:13.1]} 36.
Bh3+ {[%clk 0:00:08.5]} 36... Kd5 {[%clk 0:00:13.6]} 37. Bxc8 {[%clk 0:00:09.2]}
1-0

[Event "*** Titled Tuesday Blitz"]
[Site "Chess.com"]
[Date "2019.11.05"]
[Round "9"]
[White "Qvalda"]
[Black "MFBerna"]
[Result "1-0"]
[WhiteElo "2535"]
[BlackElo "2316"]
[TimeControl "180+2"]
[EndTime "15:07:56 PST"]
[Termination "Qvalda won on time"]

1. d4 {[%clk 0:03:01.9]} 1... d5 {[%clk 0:03:01.3]} 2. Nf3 {[%clk 0:03:03]} 2...
Nf6 {[%clk 0:03:01.2]} 3. Bg5 {[%clk 0:03:04.1]} 3... c5 {[%clk 0:02:58]} 4.
Bxf6 {[%clk 0:03:03.9]} 4... exf6 {[%clk 0:02:58.6]} 5. e3 {[%clk 0:03:04.6]}
5... Nc6 {[%clk 0:02:58.7]} 6. c3 {[%clk 0:03:03.5]} 6... c4 {[%clk 0:02:59.4]}
7. b3 {[%clk 0:02:58.8]} 7... cxb3 {[%clk 0:02:52.4]} 8. axb3 {[%clk 0:03:00.7]}
8... Be7 {[%clk 0:02:52.5]} 9. Nbd2 {[%clk 0:02:57.7]} 9... O-O {[%clk 0:02:53]}
10. Bd3 {[%clk 0:02:58.7]} 10... Be6 {[%clk 0:02:42.5]} 11. O-O {[%clk
0:02:59.4]} 11... Qd7 {[%clk 0:02:42.9]} 12. c4 {[%clk 0:02:51.8]} 12... b6
{[%clk 0:02:35.5]} 13. Qe2 {[%clk 0:02:36.9]} 13... Nb4 {[%clk 0:02:35.9]} 14.
Bb1 {[%clk 0:02:32.6]} 14... a5 {[%clk 0:02:36]} 15. Rc1 {[%clk 0:02:33]} 15...
Rfc8 {[%clk 0:02:36.1]} 16. h3 {[%clk 0:02:27.8]} 16... g6 {[%clk 0:02:35.3]}
17. e4 {[%clk 0:02:27.7]} 17... dxe4 {[%clk 0:02:35]} 18. Nxe4 {[%clk
0:02:24.1]} 18... Kg7 {[%clk 0:02:21.7]} 19. d5 {[%clk 0:02:23.6]} 19... Bxd5
{[%clk 0:02:18.9]} 20. Rd1 {[%clk 0:02:18.9]} 20... f5 {[%clk 0:02:04.7]} 21.
Qb2+ {[%clk 0:02:05.1]} 21... Kg8 {[%clk 0:01:49.1]} 22. Ng3 {[%clk 0:01:40.1]}
22... Qd6 {[%clk 0:01:40.9]} 23. cxd5 {[%clk 0:01:38.4]} 23... Bf6 {[%clk
0:01:42.1]} 24. Qa3 {[%clk 0:01:22.3]} 24... Bxa1 {[%clk 0:01:40.1]} 25. Qxa1
{[%clk 0:01:24.2]} 25... Rc7 {[%clk 0:01:20.1]} 26. Bxf5 {[%clk 0:01:10.7]}
26... gxf5 {[%clk 0:01:00.8]} 27. Nh5 {[%clk 0:01:05.8]} 27... f6 {[%clk
0:00:53.6]} 28. Nxf6+ {[%clk 0:00:59.4]} 28... Kf8 {[%clk 0:00:55.1]} 29. Nh5
{[%clk 0:00:50.5]} 29... Kg8 {[%clk 0:00:21.2]} 30. Nf6+ {[%clk 0:00:51.5]}
30... Kf8 {[%clk 0:00:22]} 31. Ng5 {[%clk 0:00:52.8]} 31... Re7 {[%clk
0:00:13.2]} 32. Ne6+ {[%clk 0:00:32.8]} 32... Kf7 {[%clk 0:00:05.4]} 33. Nxh7
{[%clk 0:00:32.1]} 33... Rg8 {[%clk 0:00:04.9]} 34. Nhg5+ {[%clk 0:00:16.2]}
34... Ke8 {[%clk 0:00:05.9]} 35. Rc1 {[%clk 0:00:14.8]} 35... Kd7 {[%clk
0:00:03.4]} 36. Qa4+ {[%clk 0:00:13.7]} 36... b5 {[%clk 0:00:02.1]} 37. Qxb5+
{[%clk 0:00:14.5]} 1-0

[Event "*** Titled Tuesday Blitz"]
[Site "Chess.com"]
[Date "2019.11.05"]
[Round "9"]
[White "marianokar"]
[Black "Marcus_Harvey"]
[Result "1-0"]
[WhiteElo "2493"]
[BlackElo "2623"]
[TimeControl "180+2"]
[EndTime "15:08:12 PST"]
[Termination "marianokar won on time"]

1. d4 {[%clk 0:03:01.9]} 1... Nf6 {[%clk 0:02:02.8]} 2. Nf3 {[%clk 0:03:00.5]}
2... e6 {[%clk 0:02:04.1]} 3. c4 {[%clk 0:03:01.9]} 3... b6 {[%clk 0:02:05.4]}
4. g3 {[%clk 0:03:03.4]} 4... Bb7 {[%clk 0:02:05.7]} 5. Bg2 {[%clk 0:03:04.9]}
5... c5 {[%clk 0:02:07.3]} 6. O-O {[%clk 0:02:55.4]} 6... cxd4 {[%clk
0:02:07.1]} 7. Qxd4 {[%clk 0:02:54.7]} 7... Be7 {[%clk 0:02:00.7]} 8. Nc3 {[%clk
0:02:54.5]} 8... Nc6 {[%clk 0:01:59.4]} 9. Qf4 {[%clk 0:02:53.7]} 9... d5 {[%clk
0:01:53.8]} 10. Rd1 {[%clk 0:02:54.7]} 10... Bd6 {[%clk 0:01:52.5]} 11. Qh4
{[%clk 0:02:52.1]} 11... O-O {[%clk 0:01:29.6]} 12. cxd5 {[%clk 0:02:42.2]}
12... Nxd5 {[%clk 0:01:29.4]} 13. Nxd5 {[%clk 0:02:40.3]} 13... exd5 {[%clk
0:01:27.1]} 14. Bg5 {[%clk 0:02:32.3]} 14... Be7 {[%clk 0:01:20.1]} 15. Bxe7
{[%clk 0:02:31]} 15... Qxe7 {[%clk 0:01:20.2]} 16. Qxe7 {[%clk 0:02:28.5]} 16...
Nxe7 {[%clk 0:01:21.3]} 17. Rac1 {[%clk 0:02:29]} 17... Rac8 {[%clk 0:01:20.4]}
18. Bh3 {[%clk 0:02:29.9]} 18... Rc5 {[%clk 0:01:17.7]} 19. b4 {[%clk 0:02:20]}
19... Rxc1 {[%clk 0:01:14.2]} 20. Rxc1 {[%clk 0:02:18.3]} 20... Ba6 {[%clk
0:01:15.7]} 21. Nd4 {[%clk 0:02:17.4]} 21... Bc4 {[%clk 0:01:15.1]} 22. a3
{[%clk 0:02:13.3]} 22... g6 {[%clk 0:01:03]} 23. e3 {[%clk 0:02:13.3]} 23... a6
{[%clk 0:00:52.2]} 24. f3 {[%clk 0:02:10.6]} 24... b5 {[%clk 0:00:52.6]} 25. Kf2
{[%clk 0:02:11.5]} 25... Ra8 {[%clk 0:00:50]} 26. Rb1 {[%clk 0:01:52.1]} 26...
Kg7 {[%clk 0:00:50.7]} 27. Rb2 {[%clk 0:01:52]} 27... Ng8 {[%clk 0:00:51.8]} 28.
g4 {[%clk 0:01:43.2]} 28... h6 {[%clk 0:00:51.5]} 29. Bg2 {[%clk 0:01:43]} 29...
Nf6 {[%clk 0:00:52.8]} 30. h4 {[%clk 0:01:43.6]} 30... Nd7 {[%clk 0:00:50.3]}
31. f4 {[%clk 0:01:43.3]} 31... Kf6 {[%clk 0:00:44.9]} 32. g5+ {[%clk
0:01:43.1]} 32... hxg5 {[%clk 0:00:46.7]} 33. hxg5+ {[%clk 0:01:44]} 33... Ke7
{[%clk 0:00:48.4]} 34. e4 {[%clk 0:01:29.6]} 34... dxe4 {[%clk 0:00:48.7]} 35.
Bxe4 {[%clk 0:01:31.5]} 35... Rh8 {[%clk 0:00:49.7]} 36. Kg3 {[%clk 0:01:30.3]}
36... Nb6 {[%clk 0:00:47.5]} 37. Rd2 {[%clk 0:01:23]} 37... Rc8 {[%clk
0:00:42.5]} 38. Bb7 {[%clk 0:01:09.6]} 38... Rh8 {[%clk 0:00:23.3]} 39. Nc6+
{[%clk 0:01:01.3]} 39... Ke6 {[%clk 0:00:22.9]} 40. Nd4+ {[%clk 0:00:56.2]}
40... Ke7 {[%clk 0:00:23.5]} 41. Bxa6 {[%clk 0:00:56.4]} 41... Ra8 {[%clk
0:00:23]} 42. Bxb5 {[%clk 0:00:52.2]} 42... Rxa3+ {[%clk 0:00:23.4]} 43. Kg4
{[%clk 0:00:52.8]} 43... Bxb5 {[%clk 0:00:18.9]} 44. Nxb5 {[%clk 0:00:53.7]}
44... Rb3 {[%clk 0:00:20.3]} 45. Rd4 {[%clk 0:00:52.6]} 45... Rb1 {[%clk
0:00:18.5]} 46. Nc3 {[%clk 0:00:47.4]} 46... Rb3 {[%clk 0:00:16.9]} 47. Ne4
{[%clk 0:00:47.3]} 47... Nd7 {[%clk 0:00:16.9]} 48. Rxd7+ {[%clk 0:00:46.8]} 1-0

[Event "*** Titled Tuesday Blitz"]
[Site "Chess.com"]
[Date "2019.11.05"]
[Round "9"]
[White "IvanRadivojevic"]
[Black "timator"]
[Result "1/2-1/2"]
[WhiteElo "2525"]
[BlackElo "2666"]
[TimeControl "180+2"]
[EndTime "15:08:19 PST"]
[Termination "Game drawn by repetition"]

1. e4 {[%clk 0:03:01.9]} 1... c5 {[%clk 0:02:57.5]} 2. Nc3 {[%clk 0:03:02.3]}
2... g6 {[%clk 0:02:57.2]} 3. f4 {[%clk 0:03:03.5]} 3... Bg7 {[%clk 0:02:58.1]}
4. Nf3 {[%clk 0:03:05.1]} 4... e6 {[%clk 0:02:59.6]} 5. e5 {[%clk 0:03:04]} 5...
d5 {[%clk 0:02:59]} 6. exd6 {[%clk 0:02:48.9]} 6... Qxd6 {[%clk 0:02:58.9]} 7.
Bb5+ {[%clk 0:02:46.9]} 7... Bd7 {[%clk 0:02:57.3]} 8. Bxd7+ {[%clk 0:02:47]}
8... Nxd7 {[%clk 0:02:58.2]} 9. d3 {[%clk 0:02:48.2]} 9... Ngf6 {[%clk
0:02:56.6]} 10. O-O {[%clk 0:02:48.9]} 10... O-O {[%clk 0:02:57.1]} 11. Kh1
{[%clk 0:02:50]} 11... a6 {[%clk 0:02:55.3]} 12. Ne4 {[%clk 0:02:48]} 12... Nxe4
{[%clk 0:02:50.5]} 13. dxe4 {[%clk 0:02:49.9]} 13... Qxd1 {[%clk 0:02:49.1]} 14.
Rxd1 {[%clk 0:02:51.8]} 14... Rad8 {[%clk 0:02:50.6]} 15. Be3 {[%clk 0:02:33.3]}
15... Bxb2 {[%clk 0:02:31.1]} 16. Rab1 {[%clk 0:02:33.6]} 16... Bg7 {[%clk
0:02:32.2]} 17. e5 {[%clk 0:02:19.7]} 17... b5 {[%clk 0:01:45]} 18. Rd6 {[%clk
0:02:18]} 18... Nb8 {[%clk 0:01:41.9]} 19. Bxc5 {[%clk 0:02:18.6]} 19... Rxd6
{[%clk 0:01:43.1]} 20. Bxd6 {[%clk 0:02:14.2]} 20... Rc8 {[%clk 0:01:44.2]} 21.
a4 {[%clk 0:02:09.1]} 21... Nd7 {[%clk 0:01:34.1]} 22. axb5 {[%clk 0:02:09]}
22... axb5 {[%clk 0:01:36]} 23. Rxb5 {[%clk 0:01:56.4]} 23... Rxc2 {[%clk
0:01:36.6]} 24. g3 {[%clk 0:01:52.7]} 24... Rf2 {[%clk 0:01:10.6]} 25. Rb7
{[%clk 0:01:43.1]} 25... Rxf3 {[%clk 0:00:55.9]} 26. Rxd7 {[%clk 0:01:43.5]}
26... h6 {[%clk 0:00:57.3]} 27. Rd8+ {[%clk 0:01:44.2]} 27... Kh7 {[%clk
0:00:58.6]} 28. Rd7 {[%clk 0:01:45]} 28... Kg8 {[%clk 0:00:59.2]} 29. Be7 {[%clk
0:01:16]} 29... g5 {[%clk 0:00:47.5]} 30. Kg2 {[%clk 0:01:07.8]} 30... Rb3
{[%clk 0:00:43.2]} 31. fxg5 {[%clk 0:00:50.8]} 31... hxg5 {[%clk 0:00:45.1]} 32.
Bxg5 {[%clk 0:00:50.6]} 32... Bxe5 {[%clk 0:00:46.3]} 33. Bh6 {[%clk 0:00:45.2]}
33... Kh7 {[%clk 0:00:43.5]} 34. Bf4 {[%clk 0:00:44.4]} 34... Bf6 {[%clk
0:00:23.8]} 35. Rxf7+ {[%clk 0:00:44.3]} 35... Kg6 {[%clk 0:00:25.4]} 36. Ra7
{[%clk 0:00:40.8]} 36... e5 {[%clk 0:00:27.3]} 37. Bc1 {[%clk 0:00:37]} 37...
Rb1 {[%clk 0:00:28.4]} 38. Rc7 {[%clk 0:00:35.7]} 38... Kf5 {[%clk 0:00:26.8]}
39. h3 {[%clk 0:00:32]} 39... e4 {[%clk 0:00:20.5]} 40. Rc5+ {[%clk 0:00:32.9]}
40... Ke6 {[%clk 0:00:20.6]} 41. g4 {[%clk 0:00:29.3]} 41... Bd4 {[%clk
0:00:21.6]} 42. Rc8 {[%clk 0:00:28.7]} 42... Kd5 {[%clk 0:00:22.3]} 43. h4
{[%clk 0:00:29.9]} 43... Bc5 {[%clk 0:00:23.2]} 44. Bf4 {[%clk 0:00:28.3]} 44...
Rb2+ {[%clk 0:00:24.5]} 45. Kh3 {[%clk 0:00:27.8]} 45... Rb3+ {[%clk 0:00:25.4]}
46. Kg2 {[%clk 0:00:26.9]} 46... Rb2+ {[%clk 0:00:26.7]} 47. Kh3 {[%clk
0:00:28]} 47... Rb3+ {[%clk 0:00:22.5]} 48. Kg2 {[%clk 0:00:28.5]} 48... Rb2+
{[%clk 0:00:13.2]} 1/2-1/2